Cogmind - Beta 17.1 @@@ ROGUE MODE // 2026.08.26 @ 19:44:05 Player: Caluan Result: Destroyed by G-34 Mercenary with Small Laser Performance ------------- Evolutions (0) 0 Regions Visited (4) 800 Robots Destroyed (25) 125 Value Destroyed (459) 459 Prototype IDs (5) 100 Alien Tech Used (0) 0 Bonus (0) 0 TOTAL SCORE: 1484 Bonus ------- None Cogmind --------- Core Integrity 0/250 Matter 239/300 Energy 100/100 System Corruption 15% Temperature Cool (6) Movement Core (50) Location -9/Mines Parts ------- > --- POWER (1) -------- (None) > --- PROPULSION (2) --- (None) > --- UTILITY (2) ------ Hacking Suite > --- WEAPON (2) ------- Light Assault Rifle > --- INVENTORY (5) ---- Light Ion Engine Light Treads Improved Heat Sink Improved Targeting Computer Light Armor Plating Peak State ------------ > --- POWER ------------ Ion Engine > --- PROPULSION ------- Light Treads Light Treads > --- UTILITY ---------- Large Storage Unit Hacking Suite > --- WEAPON ----------- EM Pulse Gun EM Pulse Gun > --- INVENTORY -------- Ion Engine Light Treads Light Treads Light Treads Improved Heat Sink Light Armor Plating EM Pulse Gun Grenade Launcher [Rating: 10] Favorites ----------- Power Ion Engine Engine Ion Engine Propulsion Light Treads Treads Light Treads Utility Hacking Suite Storage High-capacity Storage Unit Hackware Hacking Suite Weapon EM Pulse Gun Energy Gun EM Pulse Gun Ballistic Gun Light Assault Rifle Launcher Grenade Launcher Build | -11 -10 -10 -10 -9 ------- Run | Yrd Mat Min Exi Min Slots Evolved . | . . . . . Power . | . . . . . Propulsion . | . . . . . Utility . | . . . . . Weapon . | . . . . . Parts Attached 16 | 6 4 3 3 . Power 2 | 1 . 1 . . Engine 2 | 1 . 1 . . Core . | . . . . . Reactor . | . . . . . Propulsion 5 | 2 1 . 2 . Treads 5 | 2 1 . 2 . Leg . | . . . . . Wheel . | . . . . . Hover . | . . . . . Flight . | . . . . . Utility 4 | 1 3 . . . Device . | . . . . . Storage 3 | 1 2 . . . Processor . | . . . . . Hackware 1 | . 1 . . . Protection . | . . . . . Artifact . | . . . . . Weapon 5 | 2 . 2 1 . Energy Gun 3 | 2 . 1 . . Energy Cannon . | . . . . . Ballistic Gun 1 | . . . 1 . Ballistic Cannon . | . . . . . Launcher 1 | . . 1 . . Special Weapon . | . . . . . Impact Weapon . | . . . . . Slashing Weapon . | . . . . . Piercing Weapon . | . . . . . Special Melee Weapon . | . . . . . Unidentified Prototypes . | . . . . . Corrupted Parts 3 | . . . 3 . System Corruption 15 | . . . 15 . Parts Lost 5 | . . 4 . 1 Power 1 | . . 1 . . Propulsion 1 | . . 1 . . Utility . | . . . . . Weapon 3 | . . 2 . 1 Highest Loss Streak 2 | . . 2 . 1 To Critical Strikes . | . . . . . Average Backups 7 | 1 7 7 7 6 Power . | . 1 . 1 1 Propulsion 2 | . 2 2 1 1 Utility 2 | . 1 3 3 3 Weapon 1 | . 1 1 1 . Tool/Special . | . . . . . Unused Backups 4 | . . . . 4 Power 1 | . . . . 1 Propulsion . | . . . . . Utility 3 | . . . . 3 Weapon . | . . . . . Tool/Special . | . . . . . Average Slot Usage (%) 96 | . 97 96 94 95 Engine 13 | . 14 13 14 14 Treads 27 | . 27 27 28 28 Storage 14 | . 14 14 14 14 Hackware 12 | . 12 14 14 14 Energy Gun 25 | . 28 24 5 . Peak Build Rating 10 | 6 10 10 10 10 Average Rating 9 | 4 9 9 9 8 On Entrance 7 | . 6 10 9 10 Avg Prop Armor Cover (%) . | . . . . . Naked Turns . | . . . . . Heaviest Build 50 | 14 49 50 49 49 Greatest Support 40 | 40 40 40 40 40 Greatest Overweight (x) 1 | . 1 1 1 1 Average Overweight (x) . | . . 1 1 . Largest Inventory Capacity 20 | 8 20 20 20 20 Average Capacity 18 | 7 17 20 20 16 Most Carried 10 | 4 10 9 8 7 Average Carried 7 | 1 7 7 7 6 Final Capacity 20 | 8 20 20 20 5 Final Carried 9 | 2 9 8 7 5 Class Distribution -------------------- 100% | Mutant Dominant Class ---------------- Mutant | -10/Materials Mutant | -10/Mines Mutant | -10/Exiles Mutant | -9/Mines Resources | -11 -10 -10 -10 -9 ----------- Run | Yrd Mat Min Exi Min Matter Collected 375 | 181 121 73 . . Remotely . | . . . . . Salvage Created 649 | . 477 172 . . Parts 50 | . 35 15 . . Haulers Intercepted 1 | . 1 . . . Recyclers Shooed . | . . . . . Parts Field Recycled . | . . . . . Retrieved Matter . | . . . . . Parts Self-Destructed . | . . . . . Prevented . | . . . . . Parts Restored . | . . . . . Kills | -11 -10 -10 -10 -9 ------- Run | Yrd Mat Min Exi Min Combat Hostiles Destroyed 17 | . 9 8 . . Guns 13 | . 8 5 . . AOE 4 | . 1 3 . . Classes Destroyed 7 | . 7 . . . Worker 1 | . 1 . . . Hauler 1 | . 1 . . . Recycler 1 | . 1 . . . Operator 3 | . 3 . . . Watcher 2 | . 2 . . . Swarmer 11 | . 5 6 . . Grunt 6 | . 4 2 . . Best Kill Streak 4 | . 4 3 . . Combat Bots Only 3 | . 2 3 . . Max Kills in Single Turn 2 | . 2 2 . . Gunslinging . | . . . . . Exploded 2 | . 1 2 . . Melee . | . . . . . Uniques/NPCs Destroyed . | . . . . . Combat | -11 -10 -10 -10 -9 -------- Run | Yrd Mat Min Exi Min Hostile Shots Fired 97 | . 33 51 . 13 Missed 32 | . 12 16 . 4 Hits 65 | . 21 35 . 9 Projectile 65 | . 21 35 . 9 AOE 7 | . . . . 7 Critical Strikes 1 | . . 1 . . Damage Taken 968 | . 279 394 . 295 Core 250 | . 50 85 . 115 Absorbed by Shields . | . . . . . Regen/Repaired (Parts) 129 | . 129 . . . Core Remaining (%) 100 | 100 . . . . Volleys Fired 53 | . 28 25 . . Largest 2 | . 2 2 . . Hottest 80 | . 80 80 . . Shots Fired 93 | . 56 37 . . Gun 90 | . 56 34 . . Cannon . | . . . . . Launcher 3 | . . 3 . . Special . | . . . . . Kinetic . | . . . . . Thermal . | . . . . . Explosive 3 | . . 3 . . Electromagnetic 90 | . 56 34 . . Robot Hit Streak 13 | . 11 13 . . Robot Miss Streak 3 | . 2 3 . . Penetration Max . | . . . . . Secondary Targets 2 | . 2 . . . Max Gunslinging Chain 1 | . 1 . . . Shots Hit Robots 61 | . 38 23 . . Core Hits 36 | . 24 12 . . Critical Kills . | . . . . . Critical Parts Destroyed . | . . . . . Critical Strikes 1 | . 1 . . . Corrupt 1 | . 1 . . . Melee Attacks . | . . . . . Impact . | . . . . . Slashing . | . . . . . Piercing . | . . . . . Sneak Attacks . | . . . . . Combat Hostiles . | . . . . . Follow-up Attacks . | . . . . . Damage Inflicted 1227 | . 722 505 . . Guns 818 | . 525 293 . . Cannons . | . . . . . Explosions 382 | . 178 204 . . Melee . | . . . . . Ramming 27 | . 19 8 . . Kinetic . | . . . . . Thermal 237 | . 178 59 . . Explosive 145 | . . 145 . . Electromagnetic 818 | . 525 293 . . Impact . | . . . . . Slashing . | . . . . . Piercing . | . . . . . Highest Corruption 15 | . . . 15 15 Average Corruption 14 | . . . 14 15 Corruption Purged . | . . . . . Corruption Blocked . | . . . . . Effects 5 | . . . 4 1 Matter Fused 1 | . . . . 1 Heat Flow Errors 1 | . . . 1 . Energy Discharges 1 | . . . 1 . Data Loss (minor) 1 | . . . 1 . Data Loss (major) 1 | . . . 1 . Overload Shots . | . . . . . Overflow Damage 11 | . 3 8 . . Projectiles . | . . . . . Explosions 11 | . 3 8 . . Melee . | . . . . . Knockbacks . | . . . . . Impact . | . . . . . Kinetic . | . . . . . Secondary . | . . . . . Self-Inflicted Damage 109 | . 67 42 . . Shots 5 | . 2 3 . . Rammed 5 | . 4 1 . . Targets Rammed 7 | . 6 1 . . Kicked . | . . . . . Crushed 2 | . 2 . . . Highest Temperature 286 | . 126 286 137 . Average Temperature 62 | . 34 105 69 . Received Heat Transfer 228 | . 84 132 . 12 Siege Activations . | . . . . . Martial Activations . | . . . . . Shielding Activations . | . . . . . Robots Disrupted . | . . . . . Combat Hostiles . | . . . . . Robots Corrupted . | . . . . . Combat Hostiles . | . . . . . Parts Fried 3 | . 2 1 . . Impact Corruptions . | . . . . . Robots Melted . | . . . . . Combat Hostiles . | . . . . . Parts Melted . | . . . . . Heat Transferred 350 | . 300 50 . . Parts Sabotaged . | . . . . . Parts Stolen . | . . . . . Parts Stripped . | . . . . . Power Chain Reactions 6 | . 4 2 . . Alert | -11 -10 -10 -10 -9 ------- Run | Yrd Mat Min Exi Min Maximum Alert Level . | . . . . . Low Security (%) 100 | 100 100 100 . 100 Level 1 . | . . . . . Level 2 . | . . . . . Level 3 . | . . . . . Level 4 . | . . . . . Level 5 . | . . . . . High Security . | . . . . . Max Security . | . . . . . Peak Influence 95 | . 95 79 . . Initial 31 | . . 31 . . Average 19 | . 17 23 . . Influence Increases 564 | . 329 235 . . Destroy 0b10 Robot/C 340 | . 180 160 . . Destroy 0b10 Robot/NC 40 | . 40 . . . Destroy Leader 76 | . 46 30 . . Successful Hack 3 | . 3 . . . Disable Machine 45 | . 30 15 . . Destroy Structure 45 | . 15 30 . . Lose Combat Pursuer 15 | . 15 . . . Influence Decreases 564 | . 248 295 21 . Entered New Map 71 | . . 50 21 . Time Decay 453 | . 248 205 . . Lost Part 40 | . . 40 . . Squads Dispatched 2 | . 2 . . . Investigation . | . . . . . Extermination . | . . . . . Reinforcement 2 | . 2 . . . Assault . | . . . . . Garrison . | . . . . . Intercept . | . . . . . Searches Triggered . | . . . . . Construction Impeded . | . . . . . Haulers Reinforced . | . . . . . Active Scanning Responses . | . . . . . Cargo Convoy Interrupts . | . . . . . Stealth | -11 -10 -10 -10 -9 --------- Run | Yrd Mat Min Exi Min Distress Signals 1 | . 1 . . . Communications Jammed . | . . . . . Distress Signals . | . . . . . Times Spotted 32 | . 20 8 . 4 Peak Tracking Total 5 | . 4 3 . 5 Tactical Retreats 1 | . 1 . . . Traps | -11 -10 -10 -10 -9 ------- Run | Yrd Mat Min Exi Min Traps Triggered 1 | . 1 . . . Indirectly . | . . . . . Trap Hack Attempts . | . . . . . Triggered . | . . . . . Disarmed . | . . . . . Reprogrammed . | . . . . . Reused . | . . . . . Traps Extracted . | . . . . . Installed . | . . . . . Triggered . | . . . . . Machines | -11 -10 -10 -10 -9 ---------- Run | Yrd Mat Min Exi Min Machines Disabled 4 | . 3 1 . . Max in Single Turn 1 | . 1 1 . . Machines Repaired . | . . . . . Machines Dismantled . | . . . . . Machines Sabotaged . | . . . . . Overloaded Fab Kills . | . . . . . Hacking | -11 -10 -10 -10 -9 --------- Run | Yrd Mat Min Exi Min Machines Accessed 6 | . 6 . . . Terminals 5 | . 5 . . . Fabricators . | . . . . . Repair Stations 1 | . 1 . . . Recycling Units . | . . . . . Scanalyzers . | . . . . . Garrison Access . | . . . . . Total Hacks 15 | . 15 . . . Successful 10 | . 10 . . . Failed 5 | . 5 . . . Catastrophic . | . . . . . Database Lockouts . | . . . . . Manual 10 | . 10 . . . Terminals 13 | . 13 . . . Fabricators . | . . . . . Repair Stations 2 | . 2 . . . Recycling Units . | . . . . . Scanalyzers . | . . . . . Garrison Access . | . . . . . Terminal Hacks 4 | . 4 . . . Part Schematic 1 | . 1 . . . Prototype ID Bank 3 | . 3 . . . Fabricator Hacks . | . . . . . Repair Station Hacks 2 | . 2 . . . Scan Component 1 | . 1 . . . Repair 1 | . 1 . . . Recycling Unit Hacks . | . . . . . Scanalyzer . | . . . . . Garrison Access Hacks . | . . . . . Unauthorized Hacks 4 | . 4 . . . Terminals 4 | . 4 . . . Botnet 4 | . 4 . . . Fabricators . | . . . . . Repair Stations . | . . . . . Recycling Units . | . . . . . Scanalyzers . | . . . . . Garrison Access . | . . . . . Data Cores Recovered 1 | . 1 . . . Used . | . . . . . Hacking Detections 4 | . 4 . . . Full Trace Events . | . . . . . Feedback Events . | . . . . . Feedback Blocked . | . . . . . Robot Schematics Acquired . | . . . . . Robots Built . | . . . . . Authchips . | . . . . . Time . | . . . . . Total Robot Build Rating . | . . . . . Part Schematics Acquired 1 | . 1 . . . Parts Built . | . . . . . Authchips . | . . . . . Time . | . . . . . Total Part Build Rating . | . . . . . Part Studies Acquired . | . . . . . Parts Repaired 1 | . 1 . . . Time 26 | . 26 . . . Parts Recycled . | . . . . . Recycled Matter . | . . . . . Retrieved Matter . | . . . . . Retrieved Components . | . . . . . Parts Scanalyzed . | . . . . . Part Schematics Acquired . | . . . . . Parts Damaged . | . . . . . Bothacking | -11 -10 -10 -10 -9 ------------ Run | Yrd Mat Min Exi Min Used RIF Installer . | . . . . . Robots Hacked . | . . . . . Non-combat . | . . . . . Combat . | . . . . . Robot Hacks Applied . | . . . . . Relay Couplers Released . | . . . . . Fabnet Peak Effective % . | . . . . . Robots Rewired . | . . . . . Allies Hacked . | . . . . . Hacks Repelled . | . . . . . Allies | -11 -10 -10 -10 -9 -------- Run | Yrd Mat Min Exi Min Total Allies 3 | . . . . 3 Largest Group 3 | . . . . 3 Highest-Rated Group 40 | . . . . 40 Highest-Rated Ally 16 | . . . . 16 Total Orders . | . . . . . Ally Attacks 3 | . . . . 3 Total Damage 33 | . . . . 33 Kills . | . . . . . Allies Corrupted . | . . . . . Allies Melted . | . . . . . Intel | -11 -10 -10 -10 -9 ------- Run | Yrd Mat Min Exi Min Active Infowar (turns) . | . . . . . Robot Analysis Total . | . . . . . Derelict Logs Recovered 1 | . . 1 . . Drone Launches . | . . . . . Drone Recoveries . | . . . . . Exploration | -11 -10 -10 -10 -9 ------------- Run | Yrd Mat Min Exi Min Turns Passed 2576 | 72 1427 934 116 27 Spaces Moved 1085 | 44 624 354 45 18 Core 20 | 10 . . . 10 Treads 1065 | 34 624 354 45 8 Legs . | . . . . . Wheels . | . . . . . Hover . | . . . . . Flight . | . . . . . Fastest Speed 50 | 50 160 240 240 50 Average Speed 206 | 135 192 240 240 134 Slowest Speed 240 | 160 240 240 240 240 Overloaded Moves . | . . . . . Propulsion Burnouts . | . . . . . Robots Hopped . | . . . . . Potential Cave-ins . | . . . . . Cave-ins Triggered . | . . . . . Exploration Rate (%) 32 | 4 83 55 10 8 Regions Visited 4 Branch Regions 3 Pre-discovered Areas . | . . . . . Known Exits Taken . | . . . . . Unknown Exits Taken 4 | 1 1 1 1 . Scrap Searched 2 | . . 2 . . Spaces Dug . | . . . . . Terrain Destroyed 43 | . 13 30 . . Melee . | . . . . . Projectile . | . . . . . AOE 43 | . 13 30 . . Terrain Rammed . | . . . . . Walls Destroyed . | . . . . . Machines Disabled . | . . . . . Actions | -11 -10 -10 -10 -9 --------- Run | Yrd Mat Min Exi Min Total 1320 | 57 787 401 53 22 Wait 125 | . 111 14 . . Move 1081 | 43 623 353 44 18 Hop . | . . . . . Pick Up 25 | 8 12 2 3 . Fast Attach . | . . . . . Attach 17 | 6 3 4 4 . Detach 1 | . . 1 . . Swap 5 | . 2 1 2 . Drop 6 | . 2 . . 4 Fire 53 | . 28 25 . . Melee . | . . . . . Ram . | . . . . . Kick . | . . . . . Crush 7 | . 6 1 . . Escape Stasis . | . . . . . Rewire . | . . . . . Trap . | . . . . . Miscellaneous . | . . . . . Route ------- -11/Scrapyard -10/Materials (discovered 5 exits: [*Mat x2] / [*Min x2] / [*Sub]) -10/Mines (discovered 2 exits: [*Mat] / [*Exi]) -10/Exiles -9/Mines History --------- Turn | Location | Event 5 | -11/Scrapyard | Discovered new exit (range 15) 73 | -11/Scrapyard | Entered Materials 73 | -10/Materials | Discovered new exit (range 7) 276 | -10/Materials | Discovered new exit (range 14) 301 | -10/Materials | Build established: Mutant 544 | -10/Materials | Repaired Lgt. Treads 683 | -10/Materials | Discovered new exit (range 16) 900 | -10/Materials | Discovered new exit (range 5) 972 | -10/Materials | Discovered new exit (range 16) 1500 | -10/Materials | Entered Mines 1561 | -10/Mines | Discovered new exit (range 13) 1666 | -10/Mines | Learned 2 Materials zone layouts 2034 | -10/Mines | Deemed a non-threat by the Exiles lab entrance 2036 | -10/Mines | Discovered new exit (range 5) 2247 | -10/Mines | Core integrity fell below 50% 2434 | -10/Mines | Entered Exiles 2471 | -10/Exiles | System corruption reached 10% 2509 | -10/Exiles | Met 8R-AWN 2524 | -10/Exiles | Discovered new exit (range 14) 2550 | -10/Exiles | Entered Mines 2551 | -9/Mines | Assembled infested the area 2553 | -9/Mines | Assisted by bots powering up and referring to "LRC-V3" 2571 | -9/Mines | Core integrity fell below 20% 2577 | -9/Mines | Destroyed by G-34 Mercenary with Small Laser Last Messages --------------- ALERT: Infestation in the mines, dispatching Demolisher response squad. Trooper 2a: "Hello LRC-V3. What is your command?" Mercenary 2a: "Hello LRC-V3. What is your command?" Trooper 2b: "Hello LRC-V3. What is your command?" C-45 Heavy ARC bursts open, deploying its payload. D-53 Grenadier unfolds itself. Trooper 2a destroyed. Mercenary 2a destroyed. System corrupted: Matter fused (-6). Grenade Launcher destroyed. Trooper 2b destroyed. Dropped Hcp. Storage Unit. Dropped Lgt. Treads. Dropped Ion Engine. G-34 Mercenary destroyed. Map ----- +----------------------------------------------------+ | ?????????????????????????????????????????????????? | | ?????????????????????????????????????????????????? | | ?????????????????????????????????????????????????? | | ?????????????????????????????????????????????????? | | ?????????????????????????????????????????????????? | | ?????????????????????????????????????????????????? | | ?????????????????????????????????????????????????? | | ?????????????????????????????????????????????????? | | ?????????????????????????????????????????????????? | | ?????????????????????????????????????????????????? | | ?????????????????????????????????????????????????? | | ?????????????????????????????????????????????????? | | ?????????????????????????????????????????????????? | | ?????????????????????????????????????????????????? | | ?????????????????????????????????????????????????? | | ?????????????????????????????????????????????????? | | ?????????????????????????????????????????????????? | | ?????????????????????????????????????????????????? | | ?????????????????????????????????????????????????? | | ?????????????????????????????????????????????????? | | ??????????????????????????????####???????????????? | | ?????????????????????????????## ###?????????????? | | ???????????????????????#????## ##????????????? | | ???????????????????????# ???# #????????????? | | ???????????????????????# #### ###### #???? | | ???????????????????????# @ g % %/ #????? | | ???????????????????????####### # =##?????????? | | ?????????????????????????????### #?????????? | | ?????????????????????????????## ##????????? | | ????????????????????????????## = #????????? | | ????????????????????????????# = =!= #????????? | | ????????????????????????????# [ #????????? | | ????????????????????????????# ##????????? | | ????????????????????????????## % #?????????? | | ?????????????????????????????# ##?????????? | | ?????????????????????????????# ##??????????? | | ?????????????????????????????## #???????????? | | ??????????????????????????????# #???????????? | | ??????????????????????????????# ##???????????? | | ??????????????????????????????## ##????????????? | | ???????????????????????????????# #?????????????? | | ???????????????????????????????#%"##?????????????? | | ??????????????????????????????? " ???????????????? | | ???????????????????????????????# ???????????????? | | ???????????????????????????????# ???????????????? | | ???????????????????????????????# ???????????????? | | ???????????????????????????????## ???????????????? | | ?????????????????????????????????#???????????????? | | ?????????????????????????????????????????????????? | | ?????????????????????????????????????????????????? | +----------------------------------------------------+ Best States ------------- Heat Dissipation 25 Energy Generation 10 Energy Capacity 250 Matter Stores 300 Matter Capacity 300 Sight Range 16 Terrain Scan Density 10 Evasion (%) 50 Recoil Reduction 2 Offensive Hacking 10 Item Schematics ----------------- Hcp. Storage Unit | -10/Materials | Hacked Robot Schematics ------------------ None Fabricated ------------ Nothing Repaired ---------- Lgt. Treads | 7% | -10/Materials Studied --------- None Alien Tech Used ----------------- None Achievements -------------- None Challenges ------------ None Game ------ Seed PulseMeleeSegregator Manual? 0 Play Time 00:13:14 Cumulative 207.3 hours Start 2026.08.26 @ 19:29:40 End 2026.08.26 @ 19:44:05 Sessions 1 Manual Loads 0 Difficulty Rogue Special Mode None Game No. 254 Rogue 254 Adventurer 0 Explorer 0 Win Type - Total 2 Types 2/0/0/0/0/0/0/0/0/0 Lore% 28 Gallery% 53 Achievement% 32 Wizard Run 0 Options --------- Layout 1 ASCII 0 Keyboard 0 Movement Numpad Keybinds 0 Fullscreen 2 Font 24/Smallcaps Map View 50x35 Zoom Use 0% Tactical HUD 0 Map Filters NONE Filters NONE Steam 1 RUN: 96237f91-e5e7-44fb-9803-6015123f94d6